Cogmind - Beta 17 @@@ ROGUE MODE // 2026.07.05 @ 16:28:20 Player: Singularius Result: Destroyed by D-53 Grenadier with Mini Grenade Launcher Performance ------------- Evolutions (0) 0 Regions Visited (2) 400 Robots Destroyed (20) 100 Value Destroyed (470) 470 Prototype IDs (3) 60 Alien Tech Used (0) 0 Bonus (0) 0 TOTAL SCORE: 1030 Bonus ------- None Cogmind --------- Core Integrity 0/250 Matter 294/300 Energy 88/100 System Corruption 0% Temperature Cool (0) Movement Core (50) Location -10/Mines Parts ------- > --- POWER (1) -------- (None) > --- PROPULSION (2) --- (None) > --- UTILITY (2) ------ (None) > --- WEAPON (2) ------- (None) > --- INVENTORY (5) ---- Ion Engine Light Treads Aluminum Leg Aluminum Leg Aluminum Leg Peak State ------------ > --- POWER ------------ Light Ion Engine > --- PROPULSION ------- Light Treads Light Treads > --- UTILITY ---------- Large Storage Unit Hardened Light Armor Plating > --- WEAPON ----------- Beam Cannon Light Assault Rifle > --- INVENTORY -------- Ion Engine Ion Engine Ion Engine Light Nuclear Core Light Treads Aluminum Leg Aluminum Leg Seismic Detector Targeting Computer Hardened Light Armor Plating Hardened Light Armor Plating Hardened Light Armor Plating Medium Laser Beam Cannon Grenade Launcher [Rating: 10] Favorites ----------- Power Ion Engine Engine Ion Engine Power Core Light Nuclear Core Propulsion Light Treads Treads Light Treads Utility Seismic Detector Device Seismic Detector Storage Large Storage Unit Protection Hardened Light Armor Plating Weapon Light Assault Rifle Energy Gun Small Laser Energy Cannon Beam Cannon Ballistic Gun Light Assault Rifle Launcher Grenade Launcher Build | -11 -10 -10 ------- Run | Yrd Mat Min Slots Evolved . | . . . Power . | . . . Propulsion . | . . . Utility . | . . . Weapon . | . . . Parts Attached 14 | 7 4 3 Power 3 | 1 1 1 Engine 2 | 1 1 . Core 1 | . . 1 Reactor . | . . . Propulsion 2 | 2 . . Treads 2 | 2 . . Leg . | . . . Wheel . | . . . Hover . | . . . Flight . | . . . Utility 4 | 2 1 1 Device 1 | 1 . . Storage 2 | 1 1 . Processor . | . . . Hackware . | . . . Protection 1 | . . 1 Artifact . | . . . Weapon 5 | 2 2 1 Energy Gun 1 | 1 . . Energy Cannon 2 | . 1 1 Ballistic Gun 1 | 1 . . Ballistic Cannon . | . . . Launcher 1 | . 1 . Special Weapon . | . . . Impact Weapon . | . . . Slashing Weapon . | . . . Piercing Weapon . | . . . Special Melee Weapon . | . . . Unidentified Prototypes . | . . . Parts Lost 9 | . 1 8 Power 2 | . 1 1 Propulsion 2 | . . 2 Utility 1 | . . 1 Weapon 4 | . . 4 Highest Loss Streak 7 | . 1 7 To Critical Strikes . | . . . Average Backups 8 | 3 8 14 Power 1 | . 1 2 Propulsion 2 | 1 2 4 Utility 2 | . 1 5 Weapon 2 | . 2 3 Tool/Special . | . . . Unused Backups 14 | . . 14 Power 3 | . . 3 Propulsion 5 | . . 5 Utility 4 | . . 4 Weapon 2 | . . 2 Tool/Special . | . . . Average Slot Usage (%) 98 | . 97 99 Engine 11 | . 12 4 Core 1 | . . 9 Treads 27 | . 28 27 Device 13 | . 14 9 Storage 14 | . 14 14 Energy Gun 5 | . 6 . Energy Cannon 8 | . 7 14 Ballistic Gun 14 | . 14 14 Peak Build Rating 10 | 7 8 10 Average Rating 7 | 5 7 9 On Entrance 5 | . 7 8 Avg Prop Armor Cover (%) . | . . . Naked Turns . | . . . Heaviest Build 32 | 13 30 32 Greatest Support 40 | 40 40 40 Greatest Overweight (x) 1 | . . 1 Average Overweight (x) . | . . . Largest Inventory Capacity 15 | 8 15 15 Average Capacity 12 | 7 13 15 Most Carried 15 | 4 15 15 Average Carried 8 | 3 8 14 Final Capacity 15 | 8 15 5 Final Carried 15 | 4 15 5 Class Distribution -------------------- 100% | Mutant Dominant Class ---------------- Mutant | -10/Materials Mutant | -10/Mines Resources | -11 -10 -10 ----------- Run | Yrd Mat Min Matter Collected 425 | 278 96 51 Remotely . | . . . Salvage Created 612 | 46 476 90 Parts 35 | 6 25 4 Haulers Intercepted 1 | . 1 . Recyclers Shooed . | . . . Parts Field Recycled . | . . . Retrieved Matter . | . . . Parts Self-Destructed . | . . . Prevented . | . . . Parts Restored . | . . . Kills | -11 -10 -10 ------- Run | Yrd Mat Min Combat Hostiles Destroyed 16 | . 14 2 Guns 8 | . 6 2 Cannons 5 | . 5 . AOE 3 | . 3 . Classes Destroyed 5 | 1 4 . Builder 1 | . 1 . Tunneler 2 | 2 . . Hauler 1 | . 1 . Swarmer 6 | . 6 . Grunt 10 | . 8 2 Best Kill Streak 4 | 1 4 2 Combat Bots Only 3 | . 3 2 Max Kills in Single Turn 2 | 1 2 1 Gunslinging . | . . . Exploded 2 | . 2 . Melee . | . . . Uniques/NPCs Destroyed . | . . . Combat | -11 -10 -10 -------- Run | Yrd Mat Min Hostile Shots Fired 87 | . 55 32 Missed 17 | . 13 4 Hits 70 | . 42 28 Melee 1 | . . 1 Projectile 69 | . 42 27 AOE 11 | . . 11 Damage Taken 1181 | . 459 722 Core 297 | . 59 238 Absorbed by Shields . | . . . Core Remaining (%) 100 | 100 . . Volleys Fired 62 | 12 42 8 Largest 2 | 2 2 2 Hottest 80 | 60 80 80 Shots Fired 122 | 24 82 16 Gun 83 | 24 51 8 Cannon 36 | . 29 7 Launcher 3 | . 2 1 Special . | . . . Kinetic 60 | 12 40 8 Thermal 59 | 12 40 7 Explosive 3 | . 2 1 Electromagnetic . | . . . Robot Hit Streak 10 | 3 10 8 Robot Miss Streak 2 | 2 2 2 Penetration Max . | . . . Secondary Targets . | . . . Shots Hit Robots 80 | 11 58 11 Core Hits 35 | 5 25 5 Critical Kills 2 | . 1 1 Critical Parts Destroyed . | . . . Critical Strikes 2 | . 1 1 Destroy 2 | . 1 1 Melee Attacks . | . . . Impact . | . . . Slashing . | . . . Piercing . | . . . Sneak Attacks . | . . . Combat Hostiles . | . . . Follow-up Attacks . | . . . Damage Inflicted 1124 | 131 850 143 Guns 449 | 127 283 39 Cannons 508 | . 419 89 Explosions 163 | . 148 15 Melee . | . . . Ramming 4 | 4 . . Kinetic 292 | 47 206 39 Thermal 665 | 80 496 89 Explosive 163 | . 148 15 Electromagnetic . | . . . Impact . | . . . Slashing . | . . . Piercing . | . . . Highest Corruption . | . . . Average Corruption . | . . . Corruption Purged . | . . . Corruption Blocked . | . . . Overload Shots . | . . . Overflow Damage . | . . . Projectiles . | . . . Explosions . | . . . Melee . | . . . Knockbacks 1 | 1 . . Impact 1 | 1 . . Kinetic . | . . . Secondary . | . . . Self-Inflicted Damage . | . . . Shots . | . . . Rammed 1 | 1 . . Targets Rammed 1 | 1 . . Kicked . | . . . Crushed . | . . . Highest Temperature 449 | 40 449 312 Average Temperature 136 | 18 155 151 Received Heat Transfer 312 | . 216 96 Effects 5 | . 3 2 Shutdowns 3 | . 3 . Interference 2 | . . 2 Siege Activations . | . . . Martial Activations . | . . . Shielding Activations . | . . . Robots Disrupted . | . . . Combat Hostiles . | . . . Robots Corrupted . | . . . Combat Hostiles . | . . . Parts Fried . | . . . Impact Corruptions . | . . . Robots Melted . | . . . Combat Hostiles . | . . . Parts Melted 1 | . 1 . Heat Transferred 1423 | 175 1063 185 Parts Sabotaged . | . . . Parts Stolen . | . . . Parts Stripped . | . . . Power Chain Reactions . | . . . Alert | -11 -10 -10 ------- Run | Yrd Mat Min Maximum Alert Level 1 | . 1 . Low Security (%) 92 | 100 90 100 Level 1 7 | . 9 . Level 2 . | . . . Level 3 . | . . . Level 4 . | . . . Level 5 . | . . . High Security . | . . . Max Security . | . . . Peak Influence 236 | 5 236 112 Initial 57 | . . 57 Average 70 | . 79 70 Influence Increases 538 | 10 460 68 Destroy 0b10 Robot/C 320 | . 280 40 Destroy 0b10 Robot/NC 20 | 10 10 . Destroy Leader 72 | . 62 10 Successful Hack 5 | . 5 . Disable Machine 15 | . . 15 Destroy Structure 16 | . 13 3 Lose Combat Pursuer 90 | . 90 . Influence Decreases 538 | 10 313 215 Entered New Map 90 | . . 90 Time Decay 383 | 10 303 70 Lost Part 65 | . 10 55 Squads Dispatched 2 | . 2 . Investigation 1 | . 1 . Extermination . | . . . Reinforcement 1 | . 1 . Assault . | . . . Garrison . | . . . Intercept . | . . . Searches Triggered . | . . . Construction Impeded . | . . . Haulers Reinforced . | . . . Active Scanning Responses . | . . . Cargo Convoy Interrupts . | . . . Stealth | -11 -10 -10 --------- Run | Yrd Mat Min Distress Signals 3 | . 3 . Communications Jammed . | . . . Distress Signals . | . . . Times Spotted 32 | . 24 8 Peak Tracking Total 5 | . 5 4 Tactical Retreats 3 | . 3 . Traps | -11 -10 -10 ------- Run | Yrd Mat Min Traps Triggered . | . . . Indirectly . | . . . Trap Hack Attempts . | . . . Triggered . | . . . Disarmed . | . . . Reprogrammed . | . . . Reused . | . . . Traps Extracted . | . . . Installed . | . . . Triggered . | . . . Machines | -11 -10 -10 ---------- Run | Yrd Mat Min Machines Disabled 1 | . . 1 Max in Single Turn 1 | . . 1 Machines Repaired . | . . . Machines Dismantled . | . . . Machines Sabotaged . | . . . Overloaded Fab Kills . | . . . Hacking | -11 -10 -10 --------- Run | Yrd Mat Min Machines Accessed 6 | . 6 . Terminals 5 | . 5 . Fabricators . | . . . Repair Stations . | . . . Recycling Units 1 | . 1 . Scanalyzers . | . . . Garrison Access . | . . . Total Hacks 12 | . 12 . Successful 5 | . 5 . Failed 6 | . 6 . Catastrophic 1 | . 1 . Database Lockouts 1 | . 1 . Manual 4 | . 4 . Terminals 10 | . 10 . Fabricators . | . . . Repair Stations . | . . . Recycling Units 2 | . 2 . Scanalyzers . | . . . Garrison Access . | . . . Terminal Hacks 5 | . 5 . Prototype ID Bank 2 | . 2 . Locate Traps 2 | . 2 . Dispatch Records 1 | . 1 . Fabricator Hacks . | . . . Repair Station Hacks . | . . . Recycling Unit Hacks . | . . . Scanalyzer . | . . . Garrison Access Hacks . | . . . Unauthorized Hacks . | . . . Terminals . | . . . Fabricators . | . . . Repair Stations . | . . . Recycling Units . | . . . Scanalyzers . | . . . Garrison Access . | . . . Data Cores Recovered . | . . . Used . | . . . Hacking Detections 4 | . 4 . Full Trace Events 1 | . 1 . Feedback Events . | . . . Feedback Blocked . | . . . Robot Schematics Acquired . | . . . Robots Built . | . . . Authchips . | . . . Time . | . . . Total Robot Build Rating . | . . . Part Schematics Acquired . | . . . Parts Built . | . . . Authchips . | . . . Time . | . . . Total Part Build Rating . | . . . Part Studies Acquired . | . . . Parts Repaired . | . . . Time . | . . . Parts Recycled . | . . . Recycled Matter . | . . . Retrieved Matter . | . . . Retrieved Components . | . . . Parts Scanalyzed . | . . . Part Schematics Acquired . | . . . Parts Damaged . | . . . Bothacking | -11 -10 -10 ------------ Run | Yrd Mat Min Used RIF Installer . | . . . Robots Hacked . | . . . Non-combat . | . . . Combat . | . . . Robot Hacks Applied . | . . . Relay Couplers Released . | . . . Fabnet Peak Effective % . | . . . Robots Rewired . | . . . Allies Hacked . | . . . Hacks Repelled . | . . . Allies | -11 -10 -10 -------- Run | Yrd Mat Min Total Allies . | . . . Largest Group . | . . . Highest-Rated Group . | . . . Highest-Rated Ally . | . . . Total Orders . | . . . Ally Attacks . | . . . Total Damage . | . . . Kills . | . . . Allies Corrupted . | . . . Allies Melted . | . . . Intel | -11 -10 -10 ------- Run | Yrd Mat Min Active Infowar (turns) 1344 | 15 1221 108 Seismic 1344 | 15 1221 108 Robot Analysis Total . | . . . Derelict Logs Recovered . | . . . Drone Launches . | . . . Drone Recoveries . | . . . Exploration | -11 -10 -10 ------------- Run | Yrd Mat Min Turns Passed 1538 | 157 1221 160 Spaces Moved 754 | 69 610 75 Core 3 | 2 . 1 Treads 751 | 67 610 74 Legs . | . . . Wheels . | . . . Hover . | . . . Flight . | . . . Fastest Speed 50 | 50 160 50 Average Speed 159 | 156 160 159 Slowest Speed 240 | 160 160 240 Overloaded Moves . | . . . Propulsion Burnouts . | . . . Robots Hopped . | . . . Potential Cave-ins . | . . . Cave-ins Triggered . | . . . Exploration Rate (%) 41 | 4 95 24 Regions Visited 2 Branch Regions 1 Pre-discovered Areas . | . . . Known Exits Taken . | . . . Unknown Exits Taken 2 | 1 1 . Scrap Searched 1 | . . 1 Spaces Dug . | . . . Terrain Destroyed 16 | . 13 3 Melee . | . . . Projectile . | . . . AOE 16 | . 13 3 Terrain Rammed . | . . . Walls Destroyed . | . . . Machines Disabled . | . . . Actions | -11 -10 -10 --------- Run | Yrd Mat Min Total 973 | 92 780 101 Wait 117 | . 110 7 Move 752 | 68 609 75 Hop . | . . . Pick Up 19 | 4 12 3 Fast Attach 8 | 7 1 . Attach 2 | . . 2 Detach . | . . . Swap 7 | . 4 3 Drop 5 | . 2 3 Fire 62 | 12 42 8 Melee . | . . . Ram . | . . . Kick . | . . . Crush 1 | 1 . . Escape Stasis . | . . . Rewire . | . . . Trap . | . . . Miscellaneous . | . . . Route ------- -11/Scrapyard -10/Materials (discovered 4 exits: [*Mat x3] / [*Min]) -10/Mines History --------- Turn | Location | Event 7 | -11/Scrapyard | Discovered new exit (range 14) 158 | -11/Scrapyard | Entered Materials 178 | -10/Materials | Central database locked down 316 | -10/Materials | Build established: Mutant 328 | -10/Materials | Discovered new exit (range 7) 403 | -10/Materials | Discovered new exit (range 15) 594 | -10/Materials | Discovered new exit (range 15) 926 | -10/Materials | Discovered new exit (range 16) 1379 | -10/Materials | Entered Mines 1405 | -10/Mines | Met a Derelict bent on vengeance 1507 | -10/Mines | Assembled infested the area 1537 | -10/Mines | Core integrity fell below 50% 1539 | -10/Mines | Core integrity fell below 20% 1539 | -10/Mines | Destroyed by D-53 Grenadier with Mini Grenade Launcher Last Messages --------------- 01485_ Searching scrap... 01485_ Found Med. Matter Pod. 01485_ Found Com. Wheel. 01485_ Found EM Pulse Gun. 01485_ Found 34 Matter. 01507_ ALERT: Infestation in the mines, dispatching Demolisher response squad. 01529_ C-45 Heavy ARC bursts open, deploying its payload. 01529_ D-53 Grenadier unfolds itself. 01529_ Lgt. Treads destroyed. 01530_ as-48428 destroyed. 01532_ Lgt. Treads destroyed. 01533_ T-07 Excavator destroyed. 01533_ Beam Cannon destroyed. 01534_ Lgt. Nuclear Core destroyed. 01535_ Seismic Detector destroyed. 01536_ Lgt. Assault Rifle destroyed. 01537_ Grenade Launcher destroyed. 01539_ Dropped Lrg. Storage Unit. Map ----- +----------------------------------------------------+ | ?????????# """ "" #????????????????????????????? | | ?????????# """ """ #????????????????????????????? | | ?????????# """ """ #????????????????????????????? | | ?????????# #????????????????????????????? | | ?????????######### ##????????????????????????????? | | ?????????????????# ############??????????????????? | | ?????????????????# ???????????? | | ?????????????????###### ## ####??????????????????? | | ??????????????????????# #????????????????????????? | | ??????????????######### #????????????????????????? | | ??????? #????????????????????????? | | ??????????????######## ##????????????????????????? | | ?????????????????????# #?????????????????????????? | | ?????????????????????# #?????????????????????????? | | ?????????????????????# #?????????????????????????? | | ?????????????????????#[#####?????????????????????? | | ?????????????????????#!%= #?????????????????????? | | ?????????????????????##### #?????????????????????? | | ????????????????????????## #?????????????????????? | | ??????????????#????????## ##????????????????????? | | ??????????????# ???????# #????????????????????? | | ??????????##### ??????# #????????????????????? | | ??????????? #???### ##???????????????????? | | ????????????## #### ##??????????????????? | | ????????????# # #??????????????????? | | ???????????## ! !@] #??????????????????? | | ??????????## *%! !!! ##?????????????????? | | ??????????# = =![ ##????????????????? | | ?????????# ! ##???????????????? | | ?????? #???????????????? | | ??????? #?????????????? | | ???????##### aa ## #?????????????? | | ???????????### ###?## d ##????????????? | | ?????????????#??????# t d % #????????????? | | ????????????????????# ?????? | | ????????????????????## ## #????? | | ?????????????????????## ###### ####?????? | | ??????????????????????####?????### #????????? | | ??????????????????????????????????# ##????????? | | ????????????????????????????????????####?????????? | | ?????????????????????????????????????????????????? | | ?????????????????????????????????????????????????? | | ?????????????????????????????????????????????????? | | ?????????????????????????????????????????????????? | | ?????????????????????????????????????????????????? | | ?????????????????????????????????????????????????? | | ?????????????????????????????????????????????????? | | ?????????????????????????????????????????????????? | | ?????????????????????????????????????????????????? | | ?????????????????????????????????????????????????? | +----------------------------------------------------+ Best States ------------- Heat Dissipation 25 Energy Generation 14 Energy Capacity 250 Matter Stores 300 Matter Capacity 300 Sight Range 16 Terrain Scan Density 10 Armor Coverage 150 Evasion (%) 40 Recoil Reduction 2 Item Schematics ----------------- None Robot Schematics ------------------ None Fabricated ------------ Nothing Repaired ---------- Nothing Studied --------- None Alien Tech Used ----------------- None Achievements -------------- None Challenges ------------ None Game ------ Seed GravmagConstructLaser Manual? 0 Play Time 00:12:27 Cumulative 171.8 hours Start 2026.07.05 @ 16:17:30 End 2026.07.05 @ 16:28:20 Sessions 1 Manual Loads 0 Difficulty Rogue Special Mode None Game No. 100 Rogue 99 Adventurer 1 Explorer 0 Win Type - Total 0 Types 0/0/0/0/0/0/0/0/0/0 Lore% 57 Gallery% 47 Achievement% 32 Wizard Run 0 Options --------- Layout 1 ASCII 0 Keyboard 0 Movement Numpad Keybinds 0 Fullscreen 1 Font 24/Smallcaps Map View 50x35 Zoom Use 0% Tactical HUD 1 Map Filters NONE Filters NONE Steam 1 RUN: bbd5eeb5-bcc3-4080-883c-af3cace9c976